bitfinex-derivatives/quotes_SOLF0:USTF0_20260217
["timestamp","ask_amount","ask_price","bid_price","bid_amount"]
[1771345123684,5.97428577,84.77,84.691,11.16639919]
[1771345123890,11.0888861,84.769,84.691,11.16639919]
[1771345124384,80.33428577,84.77,84.7,10.6305]
[1771345124385,11.3171561,84.759,84.7,10.6305]
[1771345125186,11.3171561,84.757,84.691,11.16639919]
[1771345125392,5.97428577,84.75,84.691,11.16639919]
[1771345125588,11.3171561,84.736,84.673,10.99405462]
[1771345125996,11.3171561,84.729,84.651,10.99405462]
[1771345126397,11.3171561,84.727,84.651,10.99405462]
[1771345126593,11.3171561,84.709,84.633,10.99405462]
[1771345127396,11.3171561,84.729,84.651,10.99405462]
[1771345128590,11.3171561,84.727,84.651,10.99405462]
[1771345128788,5.97428577,84.73,84.651,10.99405462]
[1771345128789,11.3171561,84.725,84.651,10.99405462]
[1771345128995,5.97428577,84.71,84.651,10.99405462]
[1771345129493,11.3171561,84.725,84.651,10.99405462]
[1771345129692,11.3171561,84.725,84.661,10.99405462]
[1771345130098,11.3171561,84.719,84.661,10.99405462]
[1771345130494,11.3171561,84.719,84.641,10.99405462]
[1771345130802,11.3171561,84.708,84.653,10.6363]
[1771345131093,17.29144187,84.7,84.659,10.6356]
[1771345131402,17.29144187,84.7,84.641,10.99405462]
[1771345132198,17.29144187,84.7,84.652,10.6365]
[1771345132895,17.29144187,84.7,84.623,10.74449254]
[1771345132896,11.04750434,84.696,84.623,10.74449254]
[1771345133296,11.04750434,84.695,84.642,10.6377]
[1771345133494,11.04750434,84.695,84.623,10.74449254]
[1771345134494,11.04750434,84.692,84.642,10.6377]
[1771345134698,11.04750434,84.692,84.623,10.74449254]
[1771345135199,11.04750434,84.692,84.656,10.636]
[1771345135393,5.97428577,84.7,84.656,10.636]
[1771345135691,10.6308,84.698,84.648,10.637]
[1771345135897,21.67830434,84.698,84.648,10.637]
[1771345136393,21.67870434,84.694,84.648,10.637]
[1771345136595,11.04750434,84.693,84.648,10.637]
[1771345136800,5.97428577,84.68,84.604,10.74449254]
[1771345137191,11.04750434,84.693,84.656,10.636]
[1771345137992,11.04750434,84.693,84.646,10.6371]
[1771345138302,11.04750434,84.693,84.621,10.74449254]
[1771345138490,11.04750434,84.679,84.63,10.6392]
[1771345138899,11.04750434,84.679,84.621,10.74449254]
[1771345139400,11.04750434,84.679,84.636,10.6385]
[1771345139991,11.04750434,84.679,84.628,10.6394]
[1771345140192,11.04750434,84.679,84.603,10.74449254]
[1771345140391,5.97428577,84.68,84.603,10.74449254]
[1771345140392,11.04750434,84.677,84.603,10.74449254]
[1771345140801,11.04750434,84.659,84.581,10.74449254]
[1771345140995,74.4,84.658,84.581,10.74449254]
[1771345141195,11.04750434,84.659,84.58,5.97428577]
[1771345141196,11.04750434,84.659,84.62,10.6404]
[1771345141598,5.97428577,84.66,84.603,10.74449254]
[1771345141798,5.97428577,84.66,84.62,10.6405]
[1771345142200,74.4,84.669,84.603,10.74449254]
[1771345142408,11.04750434,84.677,84.603,10.74449254]
[1771345142409,11.04750434,84.677,84.64,10.638]
[1771345143401,11.04750434,84.677,84.62,10.74449254]
[1771345143696,11.04750434,84.699,84.621,10.74449254]
[1771345143902,74.4,84.713,84.644,10.74449254]
[1771345144204,11.04750434,84.718,84.644,10.74449254]
[1771345144404,85.44750434,84.718,84.644,10.74449254]
[1771345145107,11.04750434,84.71,84.644,10.74449254]
[1771345145509,10.6294,84.709,84.646,10.6373]
[1771345146106,10.6302,84.703,84.644,10.74449254]
[1771345146609,11.04750434,84.708,84.644,10.74449254]
[1771345147207,11.04750434,84.708,84.618,74.4]
[1771345147208,85.0276,84.723,84.661,10.6353]
[1771345147401,5.97428577,84.73,84.661,10.6353]
[1771345147402,5.97428577,84.73,84.661,10.74449254]
[1771345147600,11.04750434,84.747,84.671,10.74449254]
[1771345147808,10.6247,84.746,84.69,5.97428577]
[1771345148111,85.44750434,84.767,84.691,10.74449254]
[1771345148311,11.04750434,84.786,84.711,10.74449254]
[1771345148808,11.04750434,84.781,84.711,10.74449254]
[1771345149708,10.6215,84.772,84.711,10.74449254]
[1771345149905,74.4,84.789,84.711,10.74449254]
[1771345149906,5.97428577,84.79,84.711,10.74449254]
[1771345150107,11.04750434,84.789,84.711,10.74449254]
[1771345150909,11.04750434,84.779,84.711,10.74449254]
[1771345151307,74.38,84.794,84.728,21.37139254]
[1771345151502,11.04750434,84.796,84.728,21.37139254]
[1771345152113,11.04750434,84.796,84.733,10.6263]
[1771345152315,11.04750434,84.796,84.734,10.74449254]
[1771345152507,13.10036552,84.837,84.751,10.74449254]
[1771345152705,13.10036552,84.837,84.761,10.74449254]
[1771345152908,11.04750434,84.829,84.741,10.74449254]
[1771345153113,11.04750434,84.825,84.761,10.74449254]
[1771345153314,11.04750434,84.845,84.761,10.74449254]
[1771345153512,11.04750434,84.845,84.777,10.6207]
[1771345153715,11.04750434,84.845,84.761,10.74449254]
[1771345154014,11.04750434,84.843,84.761,21.36729254]
[1771345154218,11.04750434,84.843,84.761,10.74449254]
[1771345154517,11.04750434,84.843,84.77,10.6216]
[1771345155024,11.04750434,84.843,84.771,10.83205341]
[1771345155312,11.04750434,84.843,84.704,14.00130535]
[1771345155313,11.88593643,84.901,84.82,16.80633918]
[1771345155515,11.88593643,84.901,84.8,5.97428577]
[1771345155516,11.88593643,84.899,84.801,10.83205341]
[1771345155916,11.88593643,84.894,84.808,10.6169]
[1771345156116,11.88593643,84.894,84.801,10.83205341]
[1771345156412,21.92848989,84.977,84.801,10.83205341]
[1771345156413,11.88593643,84.892,84.821,10.83205341]
[1771345156813,11.88593643,84.916,84.841,10.83205341]
[1771345157015,86.24593643,84.916,84.863,10.61]
[1771345157515,11.88593643,84.916,84.863,10.61]
[1771345157710,86.22593643,84.916,84.863,10.61]
[1771345157910,11.88593643,84.938,84.878,10.6082]
[1771345158117,11.88593643,84.936,84.878,10.6082]
[1771345158307,11.88593643,84.934,84.863,10.83205341]
[1771345158512,74.34,84.935,84.842,10.83205341]
[1771345158513,11.88593643,84.929,84.842,10.83205341]
[1771345159417,11.88593643,84.927,84.865,10.6098]
[1771345160117,5.97428577,84.93,84.842,10.83205341]
[1771345160118,11.88593643,84.925,84.851,10.6115]
[1771345160314,5.97428577,84.93,84.842,10.83205341]
[1771345160315,11.88593643,84.923,84.842,10.83205341]
[1771345160516,2.04977779,84.967,84.82,16.80633918]
[1771345160517,11.88593643,84.909,84.82,16.80633918]
[1771345160710,11.88593643,84.907,84.82,16.80633918]
[1771345161017,5.97428577,84.91,84.801,10.83205341]
[1771345161018,11.88593643,84.905,84.801,10.83205341]
[1771345161220,35.52,84.945,84.781,10.83205341]
[1771345161221,11.88593643,84.859,84.781,10.83205341]
[1771345161522,74.3,84.858,84.791,10.83205341]
[1771345161710,74.3,84.857,84.794,10.6186]
[1771345161915,86.18593643,84.856,84.794,10.6186]
[1771345162113,11.88593643,84.899,84.811,10.83205341]
[1771345162416,5.97428577,84.91,84.811,10.83205341]
[1771345162417,11.88593643,84.897,84.811,10.83205341]
[1771345162623,11.88593643,84.895,84.811,10.83205341]
[1771345163115,5.97428577,84.91,84.83,5.97428577]
[1771345163116,11.88593643,84.891,84.83,5.97428577]
[1771345163513,74.28,84.89,84.83,5.97428577]
[1771345163920,74.28,84.89,84.815,10.83205341]
[1771345163921,86.16593643,84.89,84.82,5.95146076]
[1771345164220,11.88593643,84.889,84.82,5.95146076]
[1771345164519,11.88593643,84.889,84.823,10.615]
[1771345165124,11.88593643,84.889,84.834,10.6136]
[1771345165316,11.88593643,84.889,84.82,16.78351417]
[1771345166511,11.88593643,84.889,84.821,10.83205341]
[1771345167020,74.28,84.888,84.821,10.83205341]
[1771345167222,10.6072,84.887,84.821,10.83205341]
[1771345167921,74.28,84.888,84.821,10.83205341]
[1771345168615,11.88593643,84.887,84.821,10.83205341]
[1771345169016,11.88593643,84.876,84.802,10.83205341]
[1771345169317,5.95146076,84.89,84.802,10.83205341]
[1771345169318,11.88593643,84.874,84.802,10.83205341]
[1771345169521,11.88593643,84.874,84.822,10.6151]
[1771345169714,74.26,84.88,84.822,10.6151]
[1771345170120,10.6082,84.878,84.82,5.95146076]
[1771345170323,74.26,84.88,84.82,5.95146076]
[1771345170510,11.88593643,84.889,84.82,5.95146076]
[1771345170716,74.26,84.879,84.82,5.95146076]
[1771345171116,11.88593643,84.889,84.82,5.95146076]
[1771345171319,10.6083,84.877,84.82,5.95146076]
[1771345171522,11.88593643,84.876,84.802,10.83205341]
[1771345171719,11.88593643,84.869,84.79,5.95146076]
[1771345171923,11.88593643,84.848,84.786,10.83205341]
[1771345172128,11.88593643,84.869,84.791,10.83205341]
[1771345172421,11.88593643,84.869,84.816,10.6159]
[1771345172622,74.26,84.868,84.816,10.6159]
[1771345172917,11.88593643,84.869,84.816,10.6159]
[1771345173317,74.26,84.868,84.816,10.6159]
[1771345173516,74.26,84.867,84.816,10.6159]
[1771345173928,74.26,84.866,84.816,10.6159]
[1771345175716,11.88593643,84.869,84.816,10.6159]
[1771345175920,74.26,84.868,84.816,10.6159]
[1771345176218,74.26,84.867,84.809,10.83205341]
[1771345176724,74.26,84.867,84.819,10.6155]
[1771345176913,86.14593643,84.867,84.809,10.83205341]
[1771345177117,11.88593643,84.866,84.809,10.83205341]
[1771345177430,10.67003352,84.978,84.724,165.3152]
[1771345177431,11.88593643,84.855,84.791,10.83205341]
[1771345177619,11.88593643,84.853,84.791,10.83205341]
[1771345178222,11.88593643,84.852,84.791,10.83205341]
[1771345178423,11.88593643,84.852,84.751,11.83]
[1771345178424,5.95146076,84.81,84.738,10.83205341]
[1771345178629,74.26,84.811,84.751,10.83205341]
[1771345178814,74.26,84.813,84.77,10.6217]
[1771345179924,74.26,84.812,84.77,10.6217]
[1771345180324,5.95146076,84.85,84.781,10.83205341]
[1771345180624,11.88593643,84.839,84.772,10.83205341]
[1771345180830,11.88593643,84.819,84.751,10.83205341]
[1771345181421,11.88593643,84.817,84.751,10.83205341]
[1771345181620,11.88593643,84.815,84.751,10.83205341]
[1771345182125,11.88593643,84.815,84.745,10.6248]
[1771345182332,11.88593643,84.815,84.7,80.21146076]
[1771345182333,11.88593643,84.779,84.705,10.83205341]
[1771345182527,74.26,84.778,84.705,10.83205341]
[1771345182730,11.88593643,84.777,84.705,10.83205341]
[1771345182917,11.88593643,84.775,84.705,10.83205341]
[1771345183331,74.26,84.774,84.705,10.83205341]
[1771345183732,10.6221,84.767,84.706,10.6296]
[1771345184530,11.88593643,84.775,84.715,10.6286]
[1771345184721,74.28,84.768,84.715,22.30338167]
[1771345185024,10.6211,84.775,84.721,11.67478167]
[1771345185426,11.63968863,84.796,84.721,11.67478167]
[1771345185623,35.52,84.828,84.765,10.6223]
[1771345185624,10.6151,84.823,84.765,10.6223]
[1771345185935,11.63968863,84.837,84.761,11.67478167]
[1771345186229,10.6143,84.829,84.763,10.6225]
[1771345186627,74.28,84.828,84.763,10.6225]
[1771345186825,74.28,84.827,84.763,10.6225]
[1771345187230,11.63968863,84.824,84.74,17.62624243]
[1771345187524,5.95146076,84.84,84.741,11.67478167]
[1771345187525,11.63968863,84.822,84.741,11.67478167]
[1771345187929,11.63968863,84.82,84.741,11.67478167]
[1771345188523,11.63968863,84.816,84.741,11.67478167]
[1771345188836,11.63968863,84.814,84.74,5.95146076]
[1771345189135,11.63968863,84.812,84.74,5.95146076]
[1771345189335,74.28,84.813,84.721,11.67478167]
[1771345189336,11.63968863,84.794,84.731,10.6266]
[1771345189633,5.95146076,84.82,84.74,17.62624243]
[1771345189634,11.63968863,84.812,84.74,17.62624243]
[1771345189934,11.63968863,84.81,84.74,17.62624243]
[1771345190328,85.93968863,84.809,84.74,17.62624243]
[1771345190534,11.63968863,84.808,84.74,17.62624243]
[1771345190735,10.6173,84.806,84.744,10.6249]
[1771345191235,22.25698863,84.806,84.744,10.6249]
[1771345191437,11.63968863,84.799,84.717,11.67478167]
[1771345191630,11.63968863,84.797,84.717,11.67478167]
[1771345192126,11.63968863,84.795,84.721,11.67478167]
[1771345192435,74.3,84.799,84.741,11.65836142]
[1771345192825,74.3,84.8,84.741,11.65836142]
[1771345193230,74.3,84.806,84.741,11.65836142]
[1771345193626,86.21635298,84.805,84.741,11.65836142]
[1771345194131,10.6185,84.796,84.745,10.6248]
[1771345195330,10.6185,84.796,84.741,11.65836142]
[1771345195331,11.91635298,84.804,84.753,10.6238]
[1771345195630,74.3,84.803,84.754,11.65836142]
[1771345196030,10.617,84.808,84.754,11.65836142]
[1771345196225,16.56706076,84.82,84.754,11.65836142]
[1771345196430,74.3,84.808,84.754,11.65836142]
[1771345197131,74.3,84.808,84.757,10.6233]
[1771345197724,84.917,84.808,84.754,11.65836142]
[1771345198130,11.91635298,84.807,84.74,5.95146076]
[1771345198627,11.91635298,84.805,84.741,11.65836142]
[1771345199227,10.6163,84.813,84.759,11.65836142]
[1771345199740,10.6167,84.81,84.76,10.6228]
[1771345200631,11.91635298,84.808,84.74,5.95146076]
[1771345200833,11.91635298,84.799,84.737,11.65836142]
[1771345201434,74.3,84.798,84.741,11.65836142]
[1771345201634,74.3,84.797,84.741,11.65836142]
[1771345201835,11.91635298,84.819,84.741,11.65836142]
[1771345202040,11.91635298,84.817,84.741,11.65836142]
[1771345202433,10.6161,84.815,84.765,10.6222]
[1771345202839,11.91635298,84.817,84.761,11.65836142]
[1771345203041,11.91635298,84.817,84.741,11.65836142]
[1771345203339,10.6223,84.766,84.721,11.65836142]
[1771345203545,74.3,84.765,84.701,11.65836142]
[1771345203743,86.21635298,84.764,84.701,11.65836142]
[1771345204041,5.95146076,84.78,84.701,11.65836142]
[1771345204042,11.91635298,84.762,84.701,11.65836142]
[1771345204240,11.91635298,84.759,84.683,11.65836142]
[1771345204834,11.91635298,84.757,84.683,11.65836142]
[1771345205239,21.2398,84.785,84.676,10.6334]
[1771345205240,10.6269,84.729,84.676,10.6334]
[1771345205437,11.91635298,84.739,84.664,11.65836142]
[1771345205640,74.3,84.738,84.664,11.65836142]
[1771345205847,10.6258,84.737,84.692,10.6314]
[1771345206046,11.91635298,84.742,84.664,11.65836142]
[1771345206242,35.52,84.784,84.664,11.65836142]
[1771345206243,11.91635298,84.739,84.664,11.65836142]
[1771345206543,11.91635298,84.737,84.665,11.65836142]
[1771345206747,11.91635298,84.719,84.626,11.65836142]
[1771345206948,10.6297,84.707,84.65,11.65836142]
[1771345207144,11.91635298,84.738,84.66,5.95146076]
[1771345207344,10.6271,84.727,84.664,11.65836142]
[1771345207944,10.6271,84.727,84.668,10.6344]
[1771345207945,84.9471,84.727,84.668,10.6344]
[1771345208546,11.91635298,84.736,84.678,10.6332]
[1771345208751,11.91635298,84.736,84.678,11.65836142]
[1771345208752,74.32,84.735,84.678,11.65836142]
[1771345209245,74.32,84.735,84.698,10.6307]
[1771345209441,11.91635298,84.734,84.661,11.65836142]
[1771345209847,11.91635298,84.716,84.649,10.6369]
[1771345210141,11.91635298,84.716,84.642,11.65836142]
[1771345210142,11.91635298,84.714,84.642,11.65836142]
[1771345210550,5.95146076,84.72,84.642,11.65836142]
[1771345210745,10.6296,84.708,84.642,11.65836142]
[1771345211145,17.86781374,84.73,84.642,11.65836142]
[1771345211346,10.6276,84.724,84.669,10.6343]
[1771345211546,11.91635298,84.728,84.641,11.65836142]
[1771345211749,11.91635298,84.709,84.641,11.65836142]
[1771345212648,11.91635298,84.707,84.633,10.6388]
[1771345212848,11.91635298,84.707,84.624,10.64]
[1771345213049,11.91635298,84.705,84.625,11.65836142]
[1771345213555,11.91635298,84.705,84.626,10.6397]
[1771345214567,10.632,84.688,84.625,11.65836142]
[1771345215065,12.0105845,84.688,84.625,11.65836142]
[1771345215258,12.0105845,84.688,84.636,10.6385]
[1771345215457,10.6294,84.709,84.636,10.6385]
[1771345215458,12.0105845,84.708,84.636,21.52095333]
[1771345215670,86.3705845,84.707,84.637,10.88245333]
[1771345215870,10.6299,84.705,84.637,10.88245333]
[1771345216172,10.6299,84.705,84.63,5.95146076]
[1771345216173,86.3705845,84.704,84.639,10.88245333]
[1771345216869,86.3705845,84.704,84.646,10.88245333]
[1771345217374,35.52,84.771,84.646,10.88245333]
[1771345217375,12.0105845,84.722,84.659,10.6355]
[1771345217570,12.0105845,84.722,84.651,10.88245333]
[1771345218267,12.0105845,84.722,84.679,10.633]
[1771345218968,35.52,84.798,84.668,10.88245333]
[1771345218969,86.3705845,84.743,84.688,10.6319]
[1771345219167,12.0105845,84.743,84.688,10.6319]
[1771345219363,12.0105845,84.743,84.67,5.95146076]
[1771345219364,74.36,84.742,84.671,10.88245333]
[1771345219560,12.0105845,84.741,84.675,10.88245333]
[1771345219769,12.0105845,84.739,84.675,10.88245333]
[1771345219967,12.0105845,84.737,84.675,10.88245333]
[1771345220474,10.6263,84.734,84.675,10.88245333]
[1771345220677,12.0105845,84.737,84.675,10.88245333]
[1771345220861,12.0105845,84.755,84.675,10.88245333]
[1771345221067,5.95146076,84.76,84.675,10.88245333]
[1771345221068,12.0105845,84.753,84.675,10.88245333]
[1771345221267,74.36,84.752,84.675,10.88245333]
[1771345221574,12.0105845,84.753,84.692,10.88245333]
[1771345222369,12.0105845,84.753,84.694,10.6311]
[1771345222672,12.0105845,84.753,84.692,10.88245333]
[1771345222971,12.0105845,84.75,84.692,10.88245333]
[1771345223165,74.36,84.749,84.671,10.88245333]
[1771345223368,12.0105845,84.748,84.671,10.88245333]
[1771345223563,12.0105845,84.745,84.671,10.88245333]
[1771345223765,5.95146076,84.74,84.671,10.88245333]
[1771345224070,12.0105845,84.739,84.671,10.88245333]
[1771345224470,22.6372845,84.73,84.672,10.634]
[1771345225273,74.36,84.744,84.682,10.6326]
[1771345225470,74.36,84.743,84.682,10.6326]
[1771345225776,12.0105845,84.742,84.682,10.6326]
[1771345225980,12.0105845,84.742,84.673,10.88245333]
[1771345226369,12.0105845,84.74,84.673,10.88245333]
[1771345226574,12.0105845,84.738,84.673,10.88245333]
[1771345226775,10.627,84.728,84.673,10.88245333]
[1771345227880,10.627,84.728,84.682,10.6327]
[1771345228680,10.626,84.736,84.689,10.6318]
[1771345228874,12.0105845,84.738,84.683,10.88245333]
[1771345229373,10.6282,84.719,84.67,16.60763649]
[1771345229678,5.97343649,84.73,84.65,5.97343649]
[1771345229878,10.6297,84.706,84.65,5.97343649]
[1771345230073,10.6297,84.706,84.651,10.88245333]
[1771345230376,12.0105845,84.716,84.651,10.88245333]
[1771345230576,10.6308,84.698,84.651,10.88245333]
[1771345230766,12.0105845,84.716,84.651,10.88245333]
[1771345230967,10.6298,84.706,84.658,10.6357]
[1771345231172,12.0105845,84.716,84.651,10.88245333]
[1771345231367,179.45931516,84.791,84.661,10.88245333]
[1771345231368,12.0105845,84.733,84.661,10.88245333]
[1771345231876,12.0105845,84.733,84.66,5.97343649]
[1771345231877,10.6265,84.732,84.677,10.88245333]
[1771345232177,12.0105845,84.733,84.677,10.88245333]
[1771345232369,12.0105845,84.733,84.678,10.6332]
[1771345232974,22.6369845,84.733,84.678,10.6332]
[1771345233177,12.0105845,84.732,84.677,10.88245333]
[1771345233382,12.0105845,84.73,84.659,10.88245333]
[1771345233582,10.627,84.729,84.659,10.88245333]
[1771345233785,12.0105845,84.728,84.659,10.88245333]
[1771345234179,35.52,84.749,84.659,10.88245333]
[1771345234180,12.0105845,84.725,84.659,10.88245333]
[1771345234378,21.2418,84.777,84.636,21.2769]
[1771345234379,12.0105845,84.743,84.671,10.88245333]
[1771345234782,12.0105845,84.735,84.671,10.88245333]
[1771345235080,12.0105845,84.735,84.651,10.88245333]
[1771345235383,21.2418,84.777,84.651,10.88245333]
[1771345235384,12.0105845,84.733,84.674,10.6337]
[1771345235578,12.0105845,84.733,84.651,10.88245333]
[1771345235980,12.0105845,84.733,84.68,10.6329]
[1771345236182,74.36,84.732,84.669,10.88245333]
[1771345236481,86.3705845,84.733,84.67,5.97343649]
[1771345236680,86.3705845,84.733,84.684,10.6324]
[1771345237385,86.3705845,84.733,84.691,10.6315]
[1771345237976,86.3705845,84.733,84.671,10.88245333]
[1771345237977,10.6265,84.732,84.678,10.6331]
[1771345238377,12.0105845,84.733,84.671,10.88245333]
[1771345238787,12.0105845,84.733,84.687,10.6321]
[1771345239380,10.6254,84.741,84.693,10.6313]
[1771345239687,10.6244,84.749,84.687,10.88245333]
[1771345240189,12.0105845,84.75,84.687,10.88245333]
[1771345240190,12.0105845,84.75,84.691,10.6315]
[1771345240386,74.36,84.763,84.691,10.88245333]
[1771345241082,10.6234,84.757,84.707,10.6295]
[1771345241678,10.6234,84.757,84.691,10.88245333]
[1771345241679,12.0105845,84.749,84.698,10.6306]
[1771345241883,12.0105845,84.749,84.691,10.88245333]
[1771345242083,41.49343649,84.77,84.67,5.97343649]
[1771345242084,12.0105845,84.734,84.671,10.88245333]
[1771345242392,12.0105845,84.733,84.671,10.88245333]
[1771345243090,74.36,84.732,84.671,10.88245333]
[1771345243296,86.3705845,84.732,84.671,10.88245333]
[1771345243480,10.6277,84.722,84.671,21.51645333]
[1771345243680,86.3705845,84.732,84.671,10.88245333]
[1771345244293,86.3705845,84.732,84.677,10.6332]
[1771345244294,10.6277,84.723,84.677,10.6332]
[1771345244789,5.97343649,84.75,84.653,11.71154835]
[1771345244790,11.10079309,84.721,84.653,11.71154835]
[1771345244994,74.36,84.72,84.653,11.71154835]
[1771345245294,10.6294,84.709,84.653,11.71154835]
[1771345245688,11.10079309,84.72,84.653,11.71154835]
[1771345245894,10.6292,84.711,84.667,10.6346]
[1771345246195,11.10079309,84.718,84.653,11.71154835]
[1771345246494,11.10079309,84.718,84.663,10.6351]
[1771345246990,10.6307,84.699,84.655,10.636]
[1771345247187,11.10079309,84.718,84.636,11.71154835]
[1771345247188,74.36,84.704,84.636,11.71154835]
[1771345247383,11.10079309,84.703,84.636,11.71154835]
[1771345247796,10.6318,84.69,84.647,10.6371]
[1771345247989,41.49343649,84.73,84.636,11.71154835]
[1771345247990,11.10079309,84.697,84.636,11.71154835]
[1771345248307,11.10079309,84.697,84.598,74.36]
[1771345248308,11.10079309,84.677,84.619,11.71154835]
[1771345248495,74.36,84.676,84.619,11.71154835]
[1771345249099,10.6341,84.672,84.622,10.6403]
[1771345249292,74.38,84.671,84.622,10.6403]
[1771345249597,11.10079309,84.669,84.6,5.97343649]
[1771345250288,10.6354,84.661,84.61,10.6418]
[1771345250488,11.10079309,84.659,84.6,5.97343649]
[1771345250689,11.10079309,84.659,84.58,5.97343649]
[1771345250889,11.10079309,84.657,84.58,5.97343649]
[1771345251086,11.10079309,84.657,84.578,11.71154835]
[1771345251292,11.10079309,84.643,84.578,11.71154835]
[1771345251792,11.10079309,84.643,84.588,10.6445]
[1771345251997,11.10079309,84.643,84.578,11.71154835]
[1771345252499,11.10079309,84.643,84.579,10.6457]
[1771345252796,11.24252673,84.629,84.559,11.26358539]
[1771345253100,11.24252673,84.625,84.559,11.26358539]
[1771345253299,11.24252673,84.623,84.559,11.26358539]
[1771345253501,11.24252673,84.623,84.561,10.6479]
[1771345253794,11.24252673,84.623,84.559,11.26358539]
[1771345253795,11.24252673,84.621,84.559,11.26358539]
[1771345253998,11.24252673,84.619,84.559,11.26358539]
[1771345254998,10.6409,84.618,84.559,11.26358539]
[1771345255293,74.4,84.617,84.559,11.26358539]
[1771345255501,11.24252673,84.599,84.52,5.97343649]
[1771345255792,74.4,84.598,84.528,11.26358539]
[1771345256187,5.97343649,84.61,84.52,5.97343649]
[1771345256188,11.24252673,84.597,84.52,5.97343649]
[1771345256391,11.24252673,84.589,84.49,5.97343649]
[1771345256593,5.97343649,84.59,84.49,5.97343649]
[1771345256594,11.24252673,84.547,84.492,11.26358539]
[1771345257095,74.42,84.546,84.492,11.26358539]
[1771345257296,11.24252673,84.547,84.492,11.26358539]
[1771345258401,74.42,84.549,84.492,11.26358539]
[1771345258602,11.24252673,84.583,84.511,11.26358539]
[1771345258901,11.24252673,84.579,84.511,11.26358539]
[1771345259090,10.6468,84.571,84.511,11.26358539]
[1771345259895,11.24252673,84.577,84.511,11.26358539]
[1771345260289,11.24252673,84.596,84.511,11.26358539]
[1771345260494,11.24252673,84.594,84.531,11.26358539]
[1771345260893,11.24252673,84.592,84.51,17.23702188]
[1771345261101,11.24252673,84.579,84.49,17.23702188]
[1771345261300,11.24252673,84.577,84.491,11.26358539]
[1771345261493,11.24252673,84.559,84.491,11.26358539]
[1771345261689,11.24252673,84.558,84.491,11.26358539]
[1771345261999,10.6512,84.536,84.472,11.26358539]
[1771345262301,5.97343649,84.56,84.472,11.26358539]
[1771345262603,74.46,84.559,84.49,17.23702188]
[1771345262804,5.97343649,84.56,84.491,11.26358539]
[1771345263003,11.24252673,84.561,84.491,11.26358539]
[1771345263400,11.24252673,84.559,84.491,11.26358539]
[1771345263603,74.46,84.558,84.491,11.26358539]
[1771345264007,74.46,84.557,84.491,11.26358539]
[1771345264300,11.24252673,84.559,84.491,11.26358539]
[1771345264502,11.24252673,84.559,84.493,10.6564]
[1771345264702,11.24252673,84.578,84.494,11.26358539]
[1771345264901,11.24252673,84.577,84.494,11.26358539]
[1771345265102,11.24252673,84.577,84.508,11.26358539]
[1771345265394,11.24252673,84.577,84.511,11.26358539]
[1771345266004,11.24252673,84.577,84.51,5.97343649]
[1771345266201,11.24252673,84.57,84.501,10.6554]
[1771345266501,11.24252673,84.57,84.49,5.97343649]
[1771345266502,11.24252673,84.57,84.502,11.26358539]
[1771345267008,10.6485,84.557,84.502,11.26358539]
[1771345267207,11.24252673,84.57,84.502,11.26358539]
[1771345267501,21.88942673,84.57,84.503,11.26358539]
[1771345267907,11.24252673,84.57,84.503,11.26358539]
[1771345268106,11.24252673,84.57,84.505,11.26358539]
[1771345268605,10.6493,84.551,84.505,11.26358539]
[1771345268809,11.24252673,84.569,84.486,11.26358539]
[1771345268998,11.24252673,84.557,84.486,11.26358539]
[1771345269502,10.6501,84.545,84.488,11.26358539]
[1771345270302,10.6489,84.554,84.489,10.657]
[1771345270508,10.6489,84.554,84.443,74.46]
[1771345270509,11.24252673,84.557,84.491,11.26358539]
[1771345271708,11.24252673,84.557,84.503,10.6551]
[1771345272616,11.24252673,84.575,84.51,5.97343649]
[1771345272913,11.24252673,84.575,84.511,11.26358539]
[1771345273102,11.24252673,84.575,84.517,10.6534]
[1771345273309,11.24252673,84.575,84.511,11.26358539]
[1771345273508,5.97343649,84.59,84.511,11.26358539]
[1771345273509,11.24252673,84.59,84.511,11.26358539]
[1771345273709,21.2732,84.652,84.5,5.97343649]
[1771345273710,11.24252673,84.613,84.548,11.26358539]
[1771345273914,11.24252673,84.613,84.53,5.97343649]
[1771345274114,11.24252673,84.613,84.531,11.26358539]
[1771345274321,11.11708686,84.602,84.548,10.6495]
[1771345274512,11.11708686,84.602,84.531,11.26358539]
[1771345274913,11.11708686,84.602,84.555,10.6487]
[1771345275316,11.11708686,84.602,84.531,11.26358539]
[1771345275521,21.76008686,84.601,84.547,10.6497]
[1771345275723,11.11708686,84.601,84.547,10.6497]
[1771345276128,11.11708686,84.601,84.557,10.6484]
[1771345277721,11.11708686,84.601,84.549,10.6494]